bitfinex/quotes_BTCUSD_20241011
["timestamp","ask_amount","ask_price","bid_price","bid_amount"]
[1728664960355,0.001819,62460.0,62459.0,0.00934925]
[1728664961317,0.001819,62460.0,62459.0,0.16945425]
[1728664961806,0.001819,62460.0,62459.0,0.17945425]
[1728664962287,0.000819,62460.0,62459.0,0.17945425]
[1728664962517,0.000819,62460.0,62459.0,0.18545425]
[1728664962773,0.000819,62460.0,62459.0,0.35131581]
[1728664962997,0.000819,62460.0,62459.0,0.33066553]
[1728664963224,0.000819,62460.0,62459.0,0.33466553]
[1728664963984,0.000819,62460.0,62459.0,0.33066553]
[1728664964964,0.000819,62460.0,62459.0,0.00933652]
[1728664965216,0.000819,62460.0,62457.0,0.160108]
[1728664965470,0.000819,62460.0,62456.0,0.160111]
[1728664965677,0.000819,62460.0,62458.0,0.01245691]
[1728664965678,0.01500129,62459.0,62458.0,0.01245691]
[1728664966179,0.01500129,62459.0,62453.0,0.24051181]
[1728664966416,0.01500129,62458.0,62453.0,0.40173582]
[1728664966664,0.01500129,62457.0,62456.0,0.160112]
[1728664966889,0.01500129,62457.0,62454.0,0.160117]
[1728664967134,0.01500129,62456.0,62455.0,0.160115]
[1728664967813,0.01500129,62456.0,62455.0,0.20992108]
[1728664968064,0.01500129,62456.0,62455.0,0.04980608]
[1728664968283,0.01500129,62456.0,62455.0,0.160115]
[1728664968734,0.01500129,62456.0,62453.0,0.56185482]
[1728664968961,0.09380129,62455.0,62454.0,0.160117]
[1728664970592,0.01500129,62455.0,62454.0,0.165117]
[1728664970814,0.01500129,62455.0,62454.0,0.1776068]
[1728664971298,0.01500129,62455.0,62454.0,0.1786068]
[1728664971540,0.01500129,62455.0,62454.0,0.17548435]
[1728664972515,0.01500129,62455.0,62454.0,0.17448435]
[1728664972741,0.01600129,62455.0,62454.0,0.17448435]
[1728664973746,0.01600129,62455.0,62454.0,0.16948435]
[1728664973963,0.0160037,62455.0,62454.0,0.17148435]
[1728664974934,0.0160037,62455.0,62454.0,0.17460379]
[1728664976107,0.001,62455.0,62454.0,0.17460379]
[1728664976842,0.001,62455.0,62454.0,0.01448679]
[1728664977080,0.01600543,62455.0,62454.0,0.17460379]
[1728664977335,0.01600523,62455.0,62454.0,0.17460379]
[1728664979452,0.01600523,62455.0,62454.0,0.01448679]
[1728664980400,0.51600523,62455.0,62454.0,0.01448679]
[1728664981327,0.501,62455.0,62454.0,0.01448679]
[1728664981608,0.68864347,62455.0,62454.0,0.002]
[1728664981846,0.51600622,62455.0,62454.0,0.002]
[1728664982575,0.51600622,62455.0,62454.0,0.01255788]
[1728664983754,0.51600622,62455.0,62454.0,0.002]
[1728664984386,0.51600622,62455.0,62454.0,0.01255788]
[1728664984799,0.51600622,62455.0,62454.0,0.002]
[1728664985205,0.51600622,62455.0,62454.0,0.01255788]
[1728664985431,0.94666469,62455.0,62454.0,0.002]
[1728664985657,0.78654969,62455.0,62454.0,0.002]
[1728664985864,0.94666469,62455.0,62454.0,0.002]
[1728664986526,0.77154347,62455.0,62454.0,0.002]
[1728664986731,0.7865424,62455.0,62454.0,0.002]
[1728664987620,0.9466574,62455.0,62454.0,0.002]
[1728664988495,0.87541782,62455.0,62454.0,0.002]
[1728664989635,0.71530282,62455.0,62454.0,0.002]
[1728664989850,0.71530282,62455.0,62454.0,0.01255788]
[1728664990083,0.71530282,62455.0,62454.0,0.002]
[1728664990327,0.71530282,62455.0,62453.0,0.001638]
[1728664990534,0.01499893,62454.0,62453.0,0.001638]
[1728664990941,0.15262351,62454.0,62453.0,0.001638]
[1728664991153,0.43971593,62454.0,62453.0,0.001638]
[1728664991785,0.43971593,62454.0,62453.0,0.009638]
[1728664992252,0.43971593,62454.0,62453.0,0.013638]
[1728664992703,0.43971593,62454.0,62453.0,0.009638]
[1728664992919,0.43971593,62454.0,62453.0,0.001638]
[1728664993139,0.43971593,62454.0,62453.0,0.011638]
[1728664993555,0.43971593,62454.0,62453.0,0.004638]
[1728664993761,0.43971593,62454.0,62453.0,0.009638]
[1728664994233,0.84034383,62454.0,62453.0,0.009638]
[1728664994398,0.84034383,62454.0,62453.0,0.010638]
[1728664994786,0.68022683,62454.0,62452.0,0.001638]
[1728664994997,0.73954294,62453.0,62452.0,0.001638]
[1728664996173,0.79504278,62447.0,62446.0,0.25675335]
[1728664996392,0.97126572,62447.0,62446.0,0.25675335]
[1728664996616,0.92580826,62447.0,62446.0,0.25675335]
[1728664996843,0.91080933,62447.0,62446.0,0.25675335]
[1728664997098,0.92578441,62447.0,62446.0,0.25675335]
[1728664997326,0.92578441,62447.0,62446.0,0.01624154]
[1728664997548,0.160153,62440.0,62437.0,0.00739183]
[1728664997794,1.11085273,62440.0,62437.0,0.00739183]
[1728664998505,0.433487,62427.0,62419.0,0.24051181]
[1728664998717,0.70968609,62427.0,62419.0,0.24051181]
[1728664998944,0.92003641,62427.0,62426.0,0.25135378]
[1728664999160,0.92003641,62427.0,62426.0,0.24051181]
[1728664999379,1.08340612,62427.0,62426.0,0.01577369]
[1728664999631,1.08140612,62427.0,62426.0,0.01577369]
[1728665000086,1.11238673,62427.0,62426.0,0.01577369]
[1728665000313,0.53490564,62420.0,62419.0,0.24051181]
[1728665000540,0.98470473,62420.0,62419.0,0.24051181]
[1728665000762,0.98470473,62420.0,62419.0,0.2514114]
[1728665000978,0.98470473,62420.0,62411.0,0.00164]
[1728665000979,0.160223,62413.0,62411.0,0.00164]
[1728665001199,0.62117332,62413.0,62411.0,0.00164]
[1728665001446,0.62117332,62413.0,62412.0,0.26751675]
[1728665001679,0.62117332,62413.0,62412.0,0.01604772]
[1728665002577,0.62117332,62413.0,62412.0,0.02104772]
[1728665003261,0.62117332,62413.0,62412.0,0.03004772]
[1728665003955,0.94376704,62413.0,62412.0,0.03004772]
[1728665004217,1.08167394,62413.0,62412.0,0.014]
[1728665005988,0.73295391,62413.0,62412.0,0.014]
[1728665006206,0.88239733,62413.0,62412.0,0.014]
[1728665006655,0.72117332,62413.0,62412.0,0.014]
[1728665007326,0.2736,62413.0,62412.0,0.014]
[1728665007979,0.62117332,62413.0,62412.0,0.02505029]
[1728665008197,0.62117332,62413.0,62412.0,0.014]
[1728665008649,0.73017976,62413.0,62412.0,0.014]
[1728665009113,0.62117332,62413.0,62412.0,0.014]
[1728665010014,0.78239733,62413.0,62412.0,0.014]
[1728665010237,0.59504701,62413.0,62412.0,0.014]
[1728665010462,0.433823,62413.0,62412.0,0.014]
[1728665014223,0.433823,62413.0,62412.0,0.015638]
[1728665018517,0.448719,62413.0,62412.0,0.015638]
[1728665024603,0.433823,62413.0,62412.0,0.015638]
[1728665024826,0.44878057,62413.0,62412.0,0.015638]
[1728665028139,0.2736,62413.0,62412.0,0.015638]
[1728665028365,0.01499772,62413.0,62412.0,0.015638]
[1728665028587,0.17522072,62413.0,62412.0,0.015638]
[1728665028799,0.01499772,62413.0,62412.0,0.015638]
[1728665029442,0.01499772,62413.0,62412.0,0.02668128]
[1728665029860,0.01499772,62413.0,62412.0,0.015638]
[1728665030071,0.01499772,62413.0,62412.0,0.02668128]
[1728665030967,0.17522072,62413.0,62412.0,0.02668128]
[1728665031431,0.17522072,62413.0,62412.0,0.015638]
[1728665033143,0.01499772,62413.0,62412.0,0.015638]
[1728665033841,0.01499772,62413.0,62412.0,0.02668128]
[1728665034051,0.01499772,62413.0,62412.0,0.015638]
[1728665034288,0.01499772,62413.0,62412.0,0.02668128]
[1728665034839,0.01499772,62413.0,62412.0,0.18690628]
[1728665035052,0.07337308,62442.0,62412.0,0.18690628]
[1728665035053,0.160161,62437.0,62425.0,0.160192]
[1728665035252,0.24051181,62436.0,62425.0,0.01132749]
[1728665035457,0.32029,62444.0,62425.0,0.37221601]
[1728665035667,0.160152,62441.0,62425.0,0.38353571]
[1728665036091,0.004819,62426.0,62425.0,0.38453571]
[1728665036344,0.004819,62426.0,62425.0,0.39453571]
[1728665036507,0.000819,62426.0,62425.0,0.38353571]
[1728665036907,0.000819,62426.0,62425.0,0.39353571]
[1728665037961,0.000819,62426.0,62425.0,0.44339664]
[1728665038163,0.000819,62426.0,62425.0,0.39353571]
[1728665038712,0.000819,62426.0,62425.0,0.39853571]
[1728665039131,0.000819,62426.0,62425.0,0.36523571]
[1728665040224,0.000819,62426.0,62425.0,0.34773571]
[1728665042348,0.18735032,62454.0,62431.0,0.18735032]
[1728665042559,0.320245,62453.0,62437.0,0.320318]
[1728665042772,0.401453,62451.0,62438.0,0.00320275]
[1728665042975,0.401453,62451.0,62441.0,0.16015]
[1728665042976,0.0812,62451.0,62441.0,0.16015]
[1728665043866,0.000819,62446.0,62444.0,0.160141]
[1728665044074,0.000819,62446.0,62445.0,0.16014]
[1728665044283,0.000819,62446.0,62445.0,0.01146395]
[1728665044488,0.000819,62446.0,62445.0,0.17160395]
[1728665044706,0.000819,62446.0,62445.0,0.01146395]
[1728665044915,0.000819,62446.0,62445.0,0.17160395]
[1728665045342,0.000819,62446.0,62445.0,0.01146395]
[1728665045557,0.000819,62446.0,62445.0,0.17160395]
[1728665045767,0.000819,62446.0,62445.0,0.17760395]
[1728665046757,0.000819,62446.0,62445.0,0.19356707]
[1728665047005,0.000819,62446.0,62445.0,0.20356707]
[1728665047266,0.000819,62446.0,62445.0,0.36479108]
[1728665047742,0.079519,62446.0,62444.0,0.00752674]
[1728665048241,0.079519,62446.0,62429.0,0.06769234]
[1728665048242,0.079519,62446.0,62445.0,0.01142984]
[1728665048243,0.42388101,62446.0,62445.0,0.01142984]
[1728665048246,0.42388101,62446.0,62424.0,0.24051181]
[1728665048247,0.01490415,62445.0,62424.0,0.24051181]
[1728665048463,0.160177,62431.0,62424.0,0.24051181]
[1728665048693,0.34752232,62433.0,62425.0,0.00819678]
[1728665048905,0.160177,62431.0,62425.0,0.00819678]
[1728665049128,0.320297,62443.0,62425.0,0.00819678]
[1728665049129,0.61279333,62446.0,62425.0,0.00819678]
[1728665049348,0.0387483,62445.0,62426.0,0.16122401]
[1728665049559,0.160147,62443.0,62433.0,0.16017]
[1728665049816,0.160147,62443.0,62431.0,0.24051181]
[1728665049817,0.01490319,62442.0,62431.0,0.24051181]
[1728665050039,0.264219,62446.0,62438.0,0.24051181]
[1728665050259,0.0149015,62445.0,62434.0,0.320335]
[1728665050479,0.0149015,62444.0,62439.0,0.24051181]
[1728665050695,0.0149015,62443.0,62439.0,0.24051181]
[1728665050903,0.160141,62445.0,62440.0,0.00813673]
[1728665051124,0.01490114,62444.0,62440.0,0.00813673]
[1728665051342,0.01490114,62443.0,62440.0,0.00813673]
[1728665051584,0.160141,62445.0,62440.0,0.00813673]
[1728665051810,0.001,62443.0,62440.0,0.00813673]
[1728665052025,0.160146,62443.0,62440.0,0.00813673]
[1728665052454,0.160146,62443.0,62442.0,0.01576923]
[1728665052668,0.17504747,62443.0,62442.0,0.01576923]
[1728665053563,0.17504747,62443.0,62442.0,0.02076923]
[1728665055140,0.19889502,62443.0,62442.0,0.01576923]
[1728665055395,0.17504747,62443.0,62442.0,0.01876923]
[1728665055670,0.17504747,62443.0,62442.0,0.013]
[1728665055671,0.70937608,62443.0,62442.0,0.013]
[1728665055894,0.70937608,62443.0,62432.0,0.24051181]
[1728665055895,0.196,62441.0,62432.0,0.24051181]
[1728665056108,0.34752132,62433.0,62432.0,0.24051181]
[1728665056854,0.160204,62421.0,62417.0,0.24051181]
[1728665057076,0.2727,62432.0,62417.0,0.24051181]
[1728665057077,0.160198,62423.0,62417.0,0.40072381]
[1728665057304,0.50773732,62425.0,62420.0,0.01614936]
[1728665057524,0.160202,62421.0,62420.0,0.01614936]
[1728665057750,0.2727,62432.0,62420.0,0.01614936]
[1728665058020,0.160202,62421.0,62420.0,0.01614936]
[1728665058231,0.18735032,62429.0,62422.0,0.24051181]
[1728665058447,0.160199,62423.0,62420.0,0.01614936]
[1728665058663,0.320384,62425.0,62420.0,0.01614936]
[1728665058897,0.17511427,62424.0,62420.0,0.01614936]
[1728665059113,0.1602,62422.0,62420.0,0.01614936]
[1728665059320,0.160198,62423.0,62420.0,0.01614936]
[1728665059581,0.160194,62425.0,62420.0,0.01814936]
[1728665059785,0.01492238,62424.0,62420.0,0.01814936]
[1728665059997,0.160194,62425.0,62420.0,0.01614936]
[1728665060212,0.161195,62424.0,62420.0,0.02314936]
[1728665061068,0.161195,62424.0,62421.0,0.00815989]
[1728665061069,0.165199,62422.0,62421.0,0.00815989]
[1728665061304,0.240799,62422.0,62421.0,0.00815989]
[1728665061539,0.160202,62421.0,62420.0,0.01614936]
[1728665061757,0.160202,62421.0,62420.0,0.02214936]
[1728665061978,0.0806,62422.0,62420.0,0.01778936]
[1728665062182,0.0756,62422.0,62420.0,0.01778936]
[1728665062405,0.0756,62422.0,62421.0,0.01415989]
[1728665062621,0.0756,62422.0,62421.0,0.00815989]
[1728665063068,0.16019,62426.0,62421.0,0.00815989]
[1728665063245,0.17512567,62425.0,62421.0,0.00815989]
[1728665063488,0.01493367,62424.0,62421.0,0.00815989]
[1728665063702,0.01493367,62427.0,62421.0,0.00815989]
[1728665063919,0.0149395,62426.0,62421.0,0.00815989]
[1728665064126,0.160187,62427.0,62421.0,0.00815989]
[1728665064342,0.01494587,62426.0,62421.0,0.00815989]
[1728665064553,0.160187,62427.0,62421.0,0.00815989]
[1728665064554,0.01494587,62425.0,62421.0,0.00815989]
[1728665064767,0.077,62429.0,62421.0,0.00815989]
[1728665064768,0.01494587,62424.0,62421.0,0.00815989]
[1728665064978,0.320371,62428.0,62421.0,0.00815989]
[1728665064979,0.160189,62427.0,62421.0,0.00815989]
[1728665065190,0.001,62422.0,62421.0,0.00815989]
[1728665065666,0.001,62422.0,62421.0,0.00915989]
[1728665065877,0.002,62425.0,62421.0,0.00815989]
[1728665066095,0.160189,62427.0,62421.0,0.00815989]
[1728665066302,0.01494463,62426.0,62421.0,0.00815989]
[1728665066522,0.01494463,62425.0,62421.0,0.00815989]
[1728665066786,0.160189,62426.0,62421.0,0.00815989]
[1728665067046,0.001,62422.0,62421.0,0.01415989]
[1728665067290,0.001,62422.0,62421.0,0.17436189]
[1728665068192,0.002,62425.0,62421.0,0.16836189]
[1728665068447,0.160186,62428.0,62421.0,0.00815989]
[1728665068684,0.01494281,62427.0,62422.0,0.320399]
[1728665068927,0.01494281,62426.0,62425.0,0.16019]
[1728665069165,0.077,62429.0,62425.0,0.16019]
[1728665069424,0.01494062,62428.0,62425.0,0.16836973]
[1728665069672,0.01494062,62427.0,62425.0,0.16836973]
[1728665069901,0.077,62429.0,62425.0,0.16836973]
[1728665070160,0.01494284,62428.0,62425.0,0.01317973]
[1728665070407,0.077,62429.0,62425.0,0.01317973]
[1728665070408,0.01494284,62427.0,62425.0,0.01317973]
[1728665070664,0.077,62429.0,62425.0,0.01317973]
[1728665070860,0.01494479,62428.0,62425.0,0.01317973]
[1728665071149,0.01494479,62427.0,62426.0,0.01632321]
[1728665071405,0.077,62429.0,62426.0,0.01632321]
[1728665071406,0.0149468,62428.0,62426.0,0.01632321]
[1728665071637,0.0149468,62427.0,62426.0,0.02503787]
[1728665072416,0.0149468,62427.0,62426.0,0.02803787]
[1728665072671,0.01494634,62427.0,62426.0,0.03503787]
[1728665072920,0.01494634,62427.0,62426.0,0.02803787]
[1728665073417,0.01594634,62427.0,62426.0,0.03603787]
[1728665074426,0.01594634,62427.0,62426.0,0.19622687]
[1728665074666,0.001,62427.0,62426.0,0.19622687]
[1728665075897,0.001,62427.0,62426.0,0.03603787]
[1728665076378,0.001,62427.0,62426.0,0.19622687]
[1728665076620,0.01600593,62427.0,62426.0,0.35745088]
[1728665077268,0.001,62427.0,62426.0,0.35745088]
[1728665077275,0.001,62427.0,62426.0,0.36245088]
[1728665077817,0.00082,62445.0,62444.0,0.160143]
[1728665078080,0.01580608,62445.0,62444.0,0.160143]
[1728665078395,0.01580608,62445.0,62444.0,0.00882272]
[1728665078845,0.01580608,62445.0,62439.0,0.320308]
[1728665079083,0.00182,62445.0,62442.0,0.40065881]
[1728665079349,0.00182,62445.0,62443.0,0.00883094]
[1728665079590,0.00182,62445.0,62444.0,0.003]
[1728665079826,0.00082,62445.0,62443.0,0.00883094]
[1728665080068,0.00082,62445.0,62444.0,0.00882272]
[1728665081074,0.00182,62445.0,62442.0,0.24051181]
[1728665081309,0.00182,62445.0,62444.0,0.00882272]
[1728665081557,0.00182,62445.0,62442.0,0.24051181]
[1728665081558,0.00082,62445.0,62443.0,0.00883094]
[1728665081795,0.00182,62445.0,62444.0,0.01182272]
[1728665082050,0.00182,62445.0,62444.0,0.00882272]
[1728665082547,0.00082,62445.0,62442.0,0.24351181]
[1728665082785,0.00182,62445.0,62442.0,0.24351181]
[1728665083046,0.00182,62445.0,62443.0,0.00883094]
[1728665083534,0.00182,62445.0,62444.0,0.003]
[1728665084057,0.00082,62445.0,62444.0,0.01182272]
[1728665084320,0.00082,62445.0,62444.0,0.33318973]
[1728665084594,0.00182,62445.0,62444.0,0.33318973]
[1728665084843,0.00182,62445.0,62444.0,0.33018973]
[1728665085345,0.00082,62445.0,62444.0,0.33018973]
[1728665085587,0.00482,62445.0,62444.0,0.33318973]
[1728665085818,0.00082,62445.0,62444.0,0.33318973]
[1728665087294,0.00182,62445.0,62444.0,0.33318973]
[1728665091741,0.00182,62445.0,62444.0,0.34908594]
[1728665095703,0.00182,62445.0,62444.0,0.18786193]
[1728665096171,0.00182,62445.0,62444.0,0.02771893]
[1728665096408,0.07872,62445.0,62444.0,0.02771893]
[1728665097526,0.07872,62445.0,62444.0,0.18786193]
[1728665100189,0.00182,62445.0,62444.0,0.18786193]
[1728665100392,0.00182,62445.0,62444.0,0.34908594]
[1728665101297,0.43336,62445.0,62444.0,0.02771893]
[1728665101730,0.43336,62445.0,62444.0,0.01889621]
[1728665101941,0.62071032,62445.0,62444.0,0.01889621]
[1728665102155,0.43336,62445.0,62444.0,0.01589621]
[1728665102579,0.43336,62445.0,62444.0,0.01689621]
[1728665102812,0.61971032,62445.0,62444.0,0.01589621]
[1728665103310,0.62171032,62445.0,62444.0,0.01889621]
[1728665103772,0.61971032,62445.0,62444.0,0.003]
[1728665103985,0.43336,62445.0,62444.0,0.003]
[1728665105925,0.160143,62444.0,62443.0,0.01631993]
[1728665106344,0.320295,62443.0,62438.0,0.24051181]
[1728665106555,0.160154,62440.0,62438.0,0.24051181]
[1728665106777,0.27222,62445.0,62431.0,0.24051181]
[1728665106987,0.160166,62436.0,62433.0,0.16122401]
[1728665107726,0.320315,62439.0,62433.0,0.16122401]
[1728665107955,0.320302,62441.0,62433.0,0.16122401]
[1728665108192,0.320302,62441.0,62434.0,0.160168]
[1728665108193,0.160156,62439.0,62434.0,0.160168]
[1728665108438,0.160156,62439.0,62438.0,0.004]
[1728665109565,0.0786,62439.0,62432.0,0.160171]
[1728665109809,0.160162,62437.0,62434.0,0.005]
[1728665110028,0.160166,62435.0,62434.0,0.005]
[1728665110264,0.53901632,62435.0,62434.0,0.005]
[1728665110473,0.62131632,62435.0,62434.0,0.005]
[1728665110686,0.433966,62435.0,62434.0,0.005]
[1728665110898,0.433966,62435.0,62432.0,0.004]
[1728665110899,0.2738,62435.0,62432.0,0.004]
[1728665111139,0.160171,62433.0,62432.0,0.004]
[1728665111374,0.480507,62434.0,62433.0,0.24051181]
[1728665111622,0.320338,62434.0,62427.0,0.00164]
[1728665112098,0.320349,62432.0,62428.0,0.01055967]
[1728665112319,0.160181,62429.0,62428.0,0.01055967]
[1728665112537,0.160184,62428.0,62427.0,0.00164]
[1728665112984,0.160181,62430.0,62427.0,0.00464]
[1728665113896,0.320355,62431.0,62427.0,0.00464]
[1728665113897,0.160184,62428.0,62427.0,0.00464]
[1728665114107,0.165184,62428.0,62427.0,0.00164]
[1728665114739,0.005,62428.0,62427.0,0.00164]
[1728665115016,0.005,62428.0,62427.0,0.01746624]
[1728665115232,0.160184,62428.0,62427.0,0.01746624]
[1728665115496,0.16018,62430.0,62427.0,0.01746624]
[1728665115711,0.16018,62430.0,62427.0,0.02546624]
[1728665115927,0.320352,62432.0,62427.0,0.01746624]
[1728665116139,0.160184,62428.0,62427.0,0.02446624]
[1728665116577,0.160184,62428.0,62427.0,0.02646624]
[1728665117060,0.160184,62428.0,62427.0,0.02446624]
[1728665117477,0.160184,62428.0,62427.0,0.02046624]
[1728665117689,0.160184,62428.0,62427.0,0.02546624]
[1728665118196,0.160182,62429.0,62427.0,0.02046624]
[1728665118407,0.160179,62430.0,62427.0,0.02746624]
[1728665118632,0.2738,62435.0,62431.0,0.320352]
[1728665118840,0.2738,62435.0,62433.0,0.16017]
[1728665119476,0.2738,62435.0,62429.0,0.320361]
[1728665119685,0.320338,62434.0,62427.0,0.01946624]
[1728665119895,0.160174,62432.0,62427.0,0.01946624]
[1728665120096,0.160174,62432.0,62427.0,0.17965124]
[1728665120275,0.160174,62432.0,62427.0,0.17765124]
[1728665120502,0.160174,62432.0,62427.0,0.17765224]
[1728665120838,0.160174,62432.0,62427.0,0.01746624]
[1728665121037,0.160174,62432.0,62428.0,0.01055967]
[1728665121329,0.001,62432.0,62428.0,0.33092667]
[1728665121512,0.001,62432.0,62429.0,0.160181]
[1728665121715,0.001,62432.0,62429.0,0.17073236]
[1728665121924,0.001,62432.0,62429.0,0.01055136]
[1728665122329,0.001,62432.0,62430.0,0.01053902]
[1728665122541,0.160173,62433.0,62428.0,0.003]
[1728665122670,0.2738,62435.0,62431.0,0.01052667]
[1728665122868,0.001,62432.0,62429.0,0.16318]
[1728665123129,0.001,62432.0,62430.0,0.01053902]
[1728665123327,0.160169,62434.0,62430.0,0.01053902]
[1728665123578,0.002,62433.0,62430.0,0.17071802]
[1728665123987,0.433966,62435.0,62430.0,0.17071802]
[1728665124385,0.001,62432.0,62430.0,0.01353902]
[1728665124786,0.001,62432.0,62430.0,0.17071602]
[1728665125588,0.433967,62435.0,62430.0,0.17371602]
[1728665126063,0.437967,62435.0,62430.0,0.01053902]
[1728665126295,0.16017,62434.0,62430.0,0.01053902]
[1728665126528,0.160172,62433.0,62430.0,0.01053902]
[1728665126729,0.16017,62434.0,62429.0,0.160181]
[1728665126930,0.160172,62433.0,62431.0,0.01052667]
[1728665127129,0.2758,62435.0,62428.0,0.160183]
[1728665127130,0.160169,62434.0,62430.0,0.01053902]
[1728665127335,0.2738,62435.0,62431.0,0.01052667]
[1728665127468,0.160174,62432.0,62431.0,0.01052667]
[1728665128087,0.001,62434.0,62431.0,0.01052667]
[1728665128287,0.001,62434.0,62427.0,0.01746624]
[1728665128516,0.001,62434.0,62431.0,0.002]
[1728665128712,0.16017,62434.0,62432.0,0.01051433]
[1728665128967,0.2758,62435.0,62427.0,0.01746624]
[1728665129282,0.3354132,62435.0,62431.0,0.005]
[1728665129499,0.160174,62432.0,62431.0,0.005]
[1728665130407,0.320339,62434.0,62427.0,0.01746624]
[1728665130537,0.16018,62430.0,62427.0,0.01746624]
[1728665130739,0.160174,62432.0,62431.0,0.003]
[1728665130948,0.160181,62429.0,62427.0,0.01746624]
[1728665131171,0.320351,62432.0,62427.0,0.01746624]
[1728665131373,0.160174,62432.0,62431.0,0.005]
[1728665131796,0.159774,62432.0,62431.0,0.005]
[1728665131997,0.159774,62432.0,62427.0,0.01746624]
[1728665132205,0.159774,62432.0,62431.0,0.001]
[1728665132930,0.160172,62433.0,62427.0,0.18265224]
[1728665133113,0.160172,62433.0,62427.0,0.02246624]
[1728665133114,0.320343,62433.0,62427.0,0.02246624]
[1728665133307,0.00082,62434.0,62427.0,0.02346624]
[1728665133688,0.321161,62434.0,62427.0,0.17865124]
[1728665133868,0.160991,62434.0,62428.0,0.160183]
[1728665134072,0.160171,62433.0,62431.0,0.005]
[1728665134271,0.16099,62434.0,62427.0,0.01846624]
[1728665134515,0.00082,62434.0,62427.0,0.01846624]
[1728665134713,0.00082,62434.0,62427.0,0.17865124]
[1728665134919,0.00082,62434.0,62427.0,0.02046624]
[1728665135128,0.00082,62434.0,62433.0,0.160171]
[1728665136290,0.00082,62434.0,62433.0,0.17067299]
[1728665136817,0.00182,62434.0,62433.0,0.17067299]
[1728665138222,0.00082,62434.0,62433.0,0.17067299]
[1728665138425,0.07883374,62434.0,62433.0,0.01050199]
[1728665138646,0.08183374,62434.0,62433.0,0.17067299]
[1728665139435,0.04282497,62434.0,62433.0,0.17067299]
[1728665139595,0.08182994,62434.0,62433.0,0.17067299]
[1728665141220,0.05782688,62434.0,62433.0,0.17067299]
[1728665143828,0.05782688,62434.0,62433.0,0.01050199]
[1728665144274,0.05782688,62434.0,62431.0,0.00164]
[1728665144512,0.00382,62434.0,62433.0,0.0104936]
[1728665144736,0.05782912,62434.0,62433.0,0.0104936]
[1728665144937,0.05782912,62434.0,62432.0,0.160172]
[1728665145149,0.05400912,62433.0,62432.0,0.40068581]
[1728665145394,0.05400912,62433.0,62432.0,0.160174]
[1728665145604,0.05400947,62433.0,62432.0,0.160174]
[1728665146513,0.0540098,62433.0,62432.0,0.160174]
[1728665146747,0.00082,62434.0,62433.0,0.160171]
[1728665146960,0.05482975,62434.0,62433.0,0.160171]
[1728665148012,0.05482975,62434.0,62433.0,0.40068281]
[1728665148471,0.05782975,62434.0,62433.0,0.160171]
[1728665149119,0.04282704,62434.0,62433.0,0.160171]
[1728665149767,0.01882271,62434.0,62433.0,0.56190682]
[1728665149989,0.01882271,62434.0,62433.0,0.32139501]
[1728665150471,0.00382,62434.0,62433.0,0.32139501]
[1728665150944,0.01881743,62434.0,62433.0,0.33188861]
[1728665151171,0.00382,62434.0,62433.0,0.33188861]
[1728665151896,0.00382,62434.0,62433.0,0.33940338]
[1728665152141,0.00082,62434.0,62433.0,0.33940338]
[1728665152635,0.00082,62434.0,62433.0,0.35040338]
[1728665158550,0.00082,62434.0,62433.0,0.34288861]
[1728665158782,0.07882,62434.0,62433.0,0.0214936]
[1728665159021,0.238989,62434.0,62433.0,0.0214936]
[1728665159284,0.07882,62434.0,62433.0,0.0144936]
[1728665159721,0.07882,62434.0,62433.0,0.1786646]
[1728665159941,0.07882,62434.0,62433.0,0.0104936]
[1728665160377,0.07882,62434.0,62433.0,0.0114936]
[1728665160830,0.07882,62434.0,62433.0,0.0104936]
[1728665161557,0.08182,62434.0,62433.0,0.0104936]
[1728665161774,0.07882,62434.0,62433.0,0.0104936]
[1728665162671,0.07982,62434.0,62433.0,0.0104936]
[1728665163102,0.08582,62434.0,62433.0,0.0114936]
[1728665164477,0.00782,62434.0,62433.0,0.52023893]
[1728665165591,0.00679839,62434.0,62433.0,0.52023893]
[1728665166030,0.006,62434.0,62433.0,0.52023893]
[1728665166247,0.0816,62444.0,62435.0,0.002]
[1728665166465,0.000819,62446.0,62433.0,0.40694186]
[1728665166466,0.000819,62446.0,62444.0,0.160143]
[1728665166686,0.000819,62446.0,62444.0,0.32136701]
[1728665166931,0.000819,62446.0,62444.0,0.33232529]
[1728665168419,0.000819,62446.0,62444.0,0.34813069]
[1728665169730,0.000819,62446.0,62444.0,0.35113069]
[1728665170273,0.000819,62446.0,62444.0,0.02976368]
[1728665170515,0.08382,62445.0,62444.0,0.02976368]
[1728665171000,0.27272,62445.0,62444.0,0.02976368]
[1728665171517,0.27272,62445.0,62444.0,0.0188054]
[1728665172302,0.27272,62445.0,62444.0,0.02973127]
[1728665174277,0.27272,62445.0,62444.0,0.18987427]
[1728665174518,0.08382,62445.0,62444.0,0.18987427]
[1728665175467,0.00082,62445.0,62444.0,0.1973544]
[1728665176543,0.00082,62445.0,62444.0,0.35109828]
[1728665177924,0.00082,62445.0,62444.0,0.02973127]
[1728665179684,0.00082,62445.0,62444.0,0.18987427]
[1728665179904,0.00082,62445.0,62444.0,0.02973127]
[1728665180164,0.00082,62445.0,62444.0,0.18987427]
[1728665181293,0.00082,62445.0,62444.0,0.35109828]
[1728665181492,0.00082,62445.0,62444.0,0.5384486]
[1728665183409,0.00082,62445.0,62444.0,0.35109828]
[1728665184429,0.00082,62445.0,62444.0,0.18987427]
[1728665186535,0.00082,62445.0,62444.0,0.02973127]
[1728665186738,0.00082,62445.0,62444.0,0.18987427]
[1728665187584,0.27882,62445.0,62444.0,0.02973127]
[1728665187828,0.37355803,62445.0,62444.0,0.0188054]
[1728665188266,0.27882,62445.0,62444.0,0.02969892]
[1728665188888,0.27882,62445.0,62444.0,0.02669892]
[1728665189102,0.27882,62445.0,62444.0,0.02969892]
[1728665189315,0.27882,62445.0,62444.0,0.03469892]
[1728665189526,0.27882,62445.0,62444.0,0.02669892]
[1728665189944,0.27882,62445.0,62444.0,0.03469892]
[1728665190147,0.27882,62445.0,62444.0,0.02869892]
[1728665190367,0.27882,62445.0,62444.0,0.02669892]
[1728665190564,0.27882,62445.0,62444.0,0.03469892]
[1728665190780,0.27882,62445.0,62444.0,0.02769892]
[1728665191814,0.27882,62445.0,62444.0,0.02669892]